[Event "January 9 Early 2024"]
[Site "https://www.chess.com"]
[Date "2024.01.11"]
[Round "4"]
[White "Yagupov, Igor"]
[Black "Anton Guijarro, David"]
[Result "1/2-1/2"]
[Board "303"]
[TimeControl "180+1"]
[WhiteFideId "4113632"]
[BlackFideId "2285525"]
[WhiteElo "2650"]
[BlackElo "2980"]
[WhiteTeam "RUS"]
[BlackTeam "ESP"]
[WhiteClock "0:00:02"]
[BlackClock "0:00:05"]

1. e4 {[%clk 0:03:00]}  c5 {[%clk 0:02:59]} 2. Nf3 {[%clk 0:03:00]}  Nc6 {[%clk 0:03:00]} 3. d4 {[%clk 0:02:59]}  cxd4 {[%clk 0:03:01]} 4. Nxd4 {[%clk 0:03:00]}  e5 {[%clk 0:03:01]} 5. Nb5 {[%clk 0:02:59]}  d6 {[%clk 0:03:01]} 6. c4 {[%clk 0:02:59]}  Be6 {[%clk 0:03:01]} 7. b3 {[%clk 0:02:56]}  a6 {[%clk 0:02:59]} 8. N5c3 {[%clk 0:02:56]}  Be7 {[%clk 0:02:58]} 9. Bd3 {[%clk 0:02:55]}  Bg5 {[%clk 0:02:58]} 10. Bb2 {[%clk 0:02:54]}  h5 {[%clk 0:02:51]} 11. O-O {[%clk 0:02:47]}  h4 {[%clk 0:02:47]} 12. h3 {[%clk 0:02:35]}  Nge7 {[%clk 0:02:40]} 13. Nd5 {[%clk 0:02:34]}  Ng6 {[%clk 0:02:34]} 14. Be2 {[%clk 0:02:25]}  Bxd5 {[%clk 0:02:25]} 15. cxd5 {[%clk 0:02:13]}  Nd4 {[%clk 0:02:24]} 16. Bg4 {[%clk 0:02:10]}  O-O {[%clk 0:02:15]} 17. Bxd4 {[%clk 0:02:04]}  exd4 {[%clk 0:02:14]} 18. Na3 {[%clk 0:02:04]}  Bf4 {[%clk 0:01:51]} 19. Nc2 {[%clk 0:01:59]}  Be5 {[%clk 0:01:50]} 20. Nb4 {[%clk 0:01:46]}  Qf6 {[%clk 0:01:43]} 21. Nd3 {[%clk 0:01:45]}  Nf4 {[%clk 0:01:43]} 22. Rc1 {[%clk 0:01:30]}  b5 {[%clk 0:01:29]} 23. g3 {[%clk 0:01:21]}  Nxd3 {[%clk 0:01:26]} 24. Qxd3 {[%clk 0:01:20]}  hxg3 {[%clk 0:01:18]} 25. fxg3 {[%clk 0:01:19]}  Qe7 {[%clk 0:01:17]} 26. Kg2 {[%clk 0:01:11]}  Ra7 {[%clk 0:01:16]} 27. Rc6 {[%clk 0:01:09]}  g6 {[%clk 0:01:13]} 28. h4 {[%clk 0:01:05]}  Kg7 {[%clk 0:01:04]} 29. Rfc1 {[%clk 0:00:53]}  Rh8 {[%clk 0:00:57]} 30. Rc8 {[%clk 0:00:50]}  Rxc8 {[%clk 0:00:56]} 31. Rxc8 {[%clk 0:00:51]}  Rc7 {[%clk 0:00:54]} 32. a4 {[%clk 0:00:42]}  Rc3 {[%clk 0:00:44]} 33. Rxc3 {[%clk 0:00:39]}  dxc3 {[%clk 0:00:45]} 34. axb5 {[%clk 0:00:39]}  axb5 {[%clk 0:00:46]} 35. Bd1 {[%clk 0:00:31]}  Qa7 {[%clk 0:00:37]} 36. Bc2 {[%clk 0:00:28]}  b4 {[%clk 0:00:35]} 37. Qe2 {[%clk 0:00:23]}  Qe7 {[%clk 0:00:22]} 38. Qd3 {[%clk 0:00:18]}  Qd8 {[%clk 0:00:22]} 39. Qe2 {[%clk 0:00:18]}  Bf6 {[%clk 0:00:20]} 40. h5 {[%clk 0:00:16]}  Qe7 {[%clk 0:00:16]} 41. hxg6 {[%clk 0:00:16]}  fxg6 {[%clk 0:00:17]} 42. Qg4 {[%clk 0:00:15]}  Qe5 {[%clk 0:00:17]} 43. Qd7+ {[%clk 0:00:14]}  Be7 {[%clk 0:00:17]} 44. Qe6 {[%clk 0:00:13]}  Qg5 {[%clk 0:00:16]} 45. Kf3 {[%clk 0:00:11]}  Kh6 {[%clk 0:00:14]} 46. Qh3+ {[%clk 0:00:10]}  Kg7 {[%clk 0:00:14]} 47. Qe6 {[%clk 0:00:09]}  Bf8 {[%clk 0:00:14]} 48. Qd7+ {[%clk 0:00:09]}  Kh8 {[%clk 0:00:13]} 49. Qh3+ {[%clk 0:00:09]}  Kg8 {[%clk 0:00:13]} 50. Qe6+ {[%clk 0:00:09]}  Kh7 {[%clk 0:00:13]} 51. Qh3+ {[%clk 0:00:10]}  Bh6 {[%clk 0:00:13]} 52. Qd7+ {[%clk 0:00:09]}  Bg7 {[%clk 0:00:13]} 53. Qh3+ {[%clk 0:00:09]}  Kg8 {[%clk 0:00:13]} 54. Qe6+ {[%clk 0:00:09]}  Kf8 {[%clk 0:00:13]} 55. e5 {[%clk 0:00:08]}  Bxe5 {[%clk 0:00:11]} 56. Bxg6 {[%clk 0:00:07]}  Qf6+ {[%clk 0:00:06]} 57. Qxf6+ {[%clk 0:00:07]}  Bxf6 {[%clk 0:00:07]} 58. Bc2 {[%clk 0:00:06]}  Kg7 {[%clk 0:00:07]} 59. Ke4 {[%clk 0:00:06]}  Kh6 {[%clk 0:00:07]} 60. Kf5 {[%clk 0:00:06]}  Bg5 {[%clk 0:00:07]} 61. g4 {[%clk 0:00:07]}  Bd2 {[%clk 0:00:07]} 62. Bd3 {[%clk 0:00:07]}  Kg7 {[%clk 0:00:07]} 63. Bc2 {[%clk 0:00:07]}  Kf7 {[%clk 0:00:07]} 64. g5 {[%clk 0:00:07]}  Kg7 {[%clk 0:00:07]} 65. Bd3 {[%clk 0:00:07]}  Bc1 {[%clk 0:00:07]} 66. Bc2 {[%clk 0:00:08]}  Be3 {[%clk 0:00:07]} 67. Bd3 {[%clk 0:00:08]}  Kf7 {[%clk 0:00:07]} 68. Bc2 {[%clk 0:00:08]}  Ke7 {[%clk 0:00:08]} 69. Bd3 {[%clk 0:00:09]}  Kd7 {[%clk 0:00:08]} 70. Kf6 {[%clk 0:00:08]}  Bd4+ {[%clk 0:00:08]} 71. Kf7 {[%clk 0:00:08]}  Kc7 {[%clk 0:00:07]} 72. g6 {[%clk 0:00:09]}  Kb6 {[%clk 0:00:07]} 73. Ke6 {[%clk 0:00:05]}  Kc5 {[%clk 0:00:07]} 74. Bc2 {[%clk 0:00:05]}  Be5 {[%clk 0:00:08]} 75. Bf5 {[%clk 0:00:03]}  Kd4 {[%clk 0:00:07]} 76. g7 {[%clk 0:00:03]}  Bxg7 {[%clk 0:00:07]} 77. Kxd6 {[%clk 0:00:04]}  Ke3 {[%clk 0:00:07]} 78. Kc5 {[%clk 0:00:02]}  Bf8+ {[%clk 0:00:06]} 79. d6 {[%clk 0:00:02]}  Kd2 {[%clk 0:00:04]} 80. Kxb4 {[%clk 0:00:02]}  Bxd6+ {[%clk 0:00:03]} 81. Kc4 {[%clk 0:00:02]}  c2 {[%clk 0:00:03]} 82. Bxc2 {[%clk 0:00:02]}  Kxc2 {[%clk 0:00:04]} 83. b4 {[%clk 0:00:02]}  Bxb4 {[%clk 0:00:05]} 1/2-1/2

[Event "January 9 Early 2024"]
[Site "https://www.chess.com"]
[Date "2024.01.11"]
[Round "4"]
[White "Bodnaruk, Anastasia"]
[Black "Sokolovsky, Yahli"]
[Result "0-1"]
[Board "305"]
[TimeControl "180+1"]
[WhiteFideId "4181751"]
[BlackFideId "2820242"]
[WhiteElo "2550"]
[BlackElo "2763"]
[WhiteTeam "RUS"]
[BlackTeam "ISR"]
[WhiteClock "0:00:05"]
[BlackClock "0:00:12"]

1. e4 {[%clk 0:03:00]}  d6 {[%clk 0:03:00]} 2. d4 {[%clk 0:03:00]}  g6 {[%clk 0:03:00]} 3. Nc3 {[%clk 0:03:00]}  Bg7 {[%clk 0:03:00]} 4. f4 {[%clk 0:03:00]}  Nf6 {[%clk 0:02:57]} 5. Nf3 {[%clk 0:03:00]}  O-O {[%clk 0:02:57]} 6. e5 {[%clk 0:02:56]}  dxe5 {[%clk 0:02:56]} 7. fxe5 {[%clk 0:02:52]}  Nd5 {[%clk 0:02:55]} 8. Bd3 {[%clk 0:02:38]}  c5 {[%clk 0:02:30]} 9. Nxd5 {[%clk 0:02:35]}  Qxd5 {[%clk 0:02:30]} 10. c4 {[%clk 0:02:35]}  Qd8 {[%clk 0:02:31]} 11. d5 {[%clk 0:02:35]}  Bg4 {[%clk 0:02:32]} 12. Bf4 {[%clk 0:02:32]}  Nd7 {[%clk 0:02:32]} 13. Qe2 {[%clk 0:02:30]}  Bxf3 {[%clk 0:02:15]} 14. gxf3 {[%clk 0:02:29]}  Qb8 {[%clk 0:02:16]} 15. h4 {[%clk 0:01:52]}  Nxe5 {[%clk 0:02:12]} 16. Kf1 {[%clk 0:01:45]}  Qd6 {[%clk 0:01:31]} 17. Re1 {[%clk 0:01:41]}  f6 {[%clk 0:01:32]} 18. h5 {[%clk 0:01:36]}  g5 {[%clk 0:01:19]} 19. h6 {[%clk 0:01:14]}  Bh8 {[%clk 0:01:10]} 20. Bg3 {[%clk 0:01:12]}  Qd7 {[%clk 0:00:55]} 21. Bb1 {[%clk 0:00:48]}  Rf7 {[%clk 0:00:54]} 22. Qc2 {[%clk 0:00:40]}  Nxf3 {[%clk 0:00:46]} 23. Rd1 {[%clk 0:00:26]}  Qg4 {[%clk 0:00:38]} 24. Kg2 {[%clk 0:00:25]}  Nd4 {[%clk 0:00:31]} 25. Qd3 {[%clk 0:00:20]}  f5 {[%clk 0:00:30]} 26. Rdf1 {[%clk 0:00:16]}  f4 {[%clk 0:00:30]} 27. Rh3 {[%clk 0:00:15]}  Raf8 {[%clk 0:00:28]} 28. Qe4 {[%clk 0:00:07]}  Ne2 {[%clk 0:00:19]} 29. Rf3 {[%clk 0:00:03]}  Nd4 {[%clk 0:00:11]} 30. Rf2 {[%clk 0:00:04]}  Qd7 {[%clk 0:00:04]} 31. Bh2 {[%clk 0:00:03]}  f3+ {[%clk 0:00:04]} 32. Kg3 {[%clk 0:00:02]}  Nf5+ {[%clk 0:00:03]} 33. Kg4 {[%clk 0:00:02]}  Nd6+ {[%clk 0:00:03]} 34. Qe6 {[%clk 0:00:02]}  Qxe6+ {[%clk 0:00:03]} 35. dxe6 {[%clk 0:00:02]}  Rf6 {[%clk 0:00:04]} 36. Kxg5 {[%clk 0:00:02]}  Rxe6 {[%clk 0:00:04]} 37. Rhxf3 {[%clk 0:00:02]}  Rxf3 {[%clk 0:00:03]} 38. Rxf3 {[%clk 0:00:03]}  Ne4+ {[%clk 0:00:03]} 39. Kg4 {[%clk 0:00:03]}  Nf6+ {[%clk 0:00:03]} 40. Kf5 {[%clk 0:00:03]}  Re1 {[%clk 0:00:03]} 41. Rg3+ {[%clk 0:00:03]}  Kf7 {[%clk 0:00:03]} 42. Bc2 {[%clk 0:00:03]}  e6+ {[%clk 0:00:03]} 43. Kg5 {[%clk 0:00:03]}  Re2 {[%clk 0:00:04]} 44. Bd3 {[%clk 0:00:03]}  Rxh2 {[%clk 0:00:04]} 45. Rf3 {[%clk 0:00:03]}  Rh5+ {[%clk 0:00:05]} 46. Kf4 {[%clk 0:00:03]}  Rxh6 {[%clk 0:00:05]} 47. Ke5 {[%clk 0:00:03]}  Ke7 {[%clk 0:00:05]} 48. Kf4 {[%clk 0:00:03]}  Nd7 {[%clk 0:00:05]} 49. Ke3 {[%clk 0:00:03]}  Rf6 {[%clk 0:00:05]} 50. Rg3 {[%clk 0:00:03]}  Ne5 {[%clk 0:00:05]} 51. Be2 {[%clk 0:00:04]}  Rf8 {[%clk 0:00:04]} 52. Rh3 {[%clk 0:00:04]}  Rf7 {[%clk 0:00:04]} 53. Rh5 {[%clk 0:00:04]}  Ng6 {[%clk 0:00:04]} 54. Rxc5 {[%clk 0:00:04]}  Be5 {[%clk 0:00:05]} 55. Rb5 {[%clk 0:00:03]}  b6 {[%clk 0:00:05]} 56. c5 {[%clk 0:00:03]}  bxc5 {[%clk 0:00:05]} 57. Rxc5 {[%clk 0:00:04]}  Kf6 {[%clk 0:00:04]} 58. Ra5 {[%clk 0:00:04]}  Rd7 {[%clk 0:00:04]} 59. Bd3 {[%clk 0:00:04]}  Bxb2 {[%clk 0:00:04]} 60. a4 {[%clk 0:00:04]}  Ne5 {[%clk 0:00:04]} 61. Be2 {[%clk 0:00:04]}  Bc1+ {[%clk 0:00:04]} 62. Kf2 {[%clk 0:00:04]}  Nc6 {[%clk 0:00:04]} 63. Rc5 {[%clk 0:00:03]}  Nd4 {[%clk 0:00:02]} 64. Rxc1 {[%clk 0:00:03]}  Nxe2 {[%clk 0:00:02]} 65. Kxe2 {[%clk 0:00:03]}  Rd4 {[%clk 0:00:03]} 66. a5 {[%clk 0:00:03]}  Ra4 {[%clk 0:00:03]} 67. Rc5 {[%clk 0:00:02]}  e5 {[%clk 0:00:03]} 68. Ke3 {[%clk 0:00:02]}  Kf5 {[%clk 0:00:04]} 69. Rc7 {[%clk 0:00:02]}  Ra3+ {[%clk 0:00:05]} 70. Kf2 {[%clk 0:00:02]}  Rxa5 {[%clk 0:00:06]} 71. Rxh7 {[%clk 0:00:02]}  Ke4 {[%clk 0:00:07]} 72. Ke2 {[%clk 0:00:01]}  Ra2+ {[%clk 0:00:07]} 73. Kd1 {[%clk 0:00:02]}  a5 {[%clk 0:00:07]} 74. Rd7 {[%clk 0:00:01]}  a4 {[%clk 0:00:07]} 75. Ra7 {[%clk 0:00:01]}  a3 {[%clk 0:00:08]} 76. Kc1 {[%clk 0:00:01]}  Kf3 {[%clk 0:00:08]} 77. Rf7+ {[%clk 0:00:01]}  Ke3 {[%clk 0:00:08]} 78. Ra7 {[%clk 0:00:01]}  e4 {[%clk 0:00:08]} 79. Kb1 {[%clk 0:00:02]}  Rb2+ {[%clk 0:00:09]} 80. Ka1 {[%clk 0:00:02]}  Rb3 {[%clk 0:00:09]} 81. Ka2 {[%clk 0:00:03]}  Rd3 {[%clk 0:00:09]} 82. Re7 {[%clk 0:00:03]}  Kf3 {[%clk 0:00:10]} 83. Rf7+ {[%clk 0:00:04]}  Ke2 {[%clk 0:00:10]} 84. Re7 {[%clk 0:00:04]}  e3 {[%clk 0:00:11]} 85. Rh7 {[%clk 0:00:04]}  Kf3 {[%clk 0:00:11]} 86. Rh3+ {[%clk 0:00:04]}  Kg4 {[%clk 0:00:11]} 87. Rh1 {[%clk 0:00:04]}  e2 {[%clk 0:00:11]} 88. Re1 {[%clk 0:00:04]}  Kf3 {[%clk 0:00:12]} 89. Rc1 {[%clk 0:00:05]}  Rd1 {[%clk 0:00:11]} 90. Rc3+ {[%clk 0:00:05]}  Kf2 {[%clk 0:00:12]} 91. Rc2 {[%clk 0:00:05]}  Kf1 {[%clk 0:00:12]} 0-1

[Event "January 9 Early 2024"]
[Site "https://www.chess.com"]
[Date "2024.01.11"]
[Round "4"]
[White "Tejedor Fuente, Enrique"]
[Black "Erzhanov, Arman"]
[Result "1-0"]
[Board "306"]
[TimeControl "180+1"]
[WhiteFideId "2299100"]
[BlackFideId "4138821"]
[WhiteElo "2719"]
[BlackElo "2527"]
[WhiteTeam "ESP"]
[BlackTeam "KAZ"]
[WhiteClock "0:00:08"]
[BlackClock "0:00:08"]

1. g3 {[%clk 0:03:00]}  c5 {[%clk 0:02:59]} 2. Bg2 {[%clk 0:03:01]}  Nc6 {[%clk 0:02:59]} 3. c3 {[%clk 0:03:00]}  e5 {[%clk 0:02:58]} 4. d3 {[%clk 0:02:58]}  d5 {[%clk 0:02:58]} 5. Nd2 {[%clk 0:02:58]}  Nf6 {[%clk 0:02:57]} 6. Ngf3 {[%clk 0:02:57]}  Be7 {[%clk 0:02:57]} 7. O-O {[%clk 0:02:58]}  O-O {[%clk 0:02:57]} 8. e4 {[%clk 0:02:58]}  Re8 {[%clk 0:02:50]} 9. h3 {[%clk 0:02:57]}  Bf8 {[%clk 0:02:50]} 10. a4 {[%clk 0:02:55]}  h6 {[%clk 0:02:49]} 11. Re1 {[%clk 0:02:54]}  d4 {[%clk 0:02:47]} 12. c4 {[%clk 0:02:54]}  Nb4 {[%clk 0:02:47]} 13. Nf1 {[%clk 0:02:53]}  Nh7 {[%clk 0:02:30]} 14. N3h2 {[%clk 0:02:48]}  Be7 {[%clk 0:02:27]} 15. Kh1 {[%clk 0:02:47]}  Bg5 {[%clk 0:02:26]} 16. f4 {[%clk 0:02:47]}  exf4 {[%clk 0:02:24]} 17. gxf4 {[%clk 0:02:46]}  Bh4 {[%clk 0:02:24]} 18. Re2 {[%clk 0:02:46]}  Bd7 {[%clk 0:02:11]} 19. Nf3 {[%clk 0:02:44]}  Be7 {[%clk 0:02:09]} 20. Ne5 {[%clk 0:02:39]}  Bf8 {[%clk 0:02:03]} 21. Nxd7 {[%clk 0:02:26]}  Qxd7 {[%clk 0:02:03]} 22. Nh2 {[%clk 0:02:25]}  f6 {[%clk 0:01:55]} 23. Bf3 {[%clk 0:02:17]}  Bd6 {[%clk 0:01:54]} 24. Bg4 {[%clk 0:02:15]}  Qc7 {[%clk 0:01:55]} 25. Rf2 {[%clk 0:02:14]}  Nf8 {[%clk 0:01:45]} 26. Qf1 {[%clk 0:02:07]}  Ne6 {[%clk 0:01:34]} 27. b3 {[%clk 0:01:55]}  Re7 {[%clk 0:01:32]} 28. Bh5 {[%clk 0:01:52]}  Rf8 {[%clk 0:01:31]} 29. Rb1 {[%clk 0:01:45]}  a6 {[%clk 0:01:28]} 30. Rbb2 {[%clk 0:01:44]}  Rb8 {[%clk 0:01:24]} 31. Ng4 {[%clk 0:01:42]}  Kh8 {[%clk 0:01:22]} 32. Bg6 {[%clk 0:01:36]}  b5 {[%clk 0:01:21]} 33. axb5 {[%clk 0:01:34]}  axb5 {[%clk 0:01:22]} 34. Bd2 {[%clk 0:01:33]}  bxc4 {[%clk 0:01:20]} 35. bxc4 {[%clk 0:01:34]}  Nc6 {[%clk 0:01:03]} 36. Rxb8+ {[%clk 0:01:28]}  Qxb8 {[%clk 0:01:04]} 37. f5 {[%clk 0:01:17]}  Nf8 {[%clk 0:00:56]} 38. Bh5 {[%clk 0:01:16]}  Ne5 {[%clk 0:00:55]} 39. Nxe5 {[%clk 0:01:15]}  Bxe5 {[%clk 0:00:56]} 40. Rg2 {[%clk 0:01:15]}  Rb7 {[%clk 0:00:51]} 41. Qe2 {[%clk 0:01:11]}  Rb1+ {[%clk 0:00:49]} 42. Rg1 {[%clk 0:01:11]}  Rxg1+ {[%clk 0:00:48]} 43. Kxg1 {[%clk 0:01:11]}  Qb1+ {[%clk 0:00:49]} 44. Kg2 {[%clk 0:01:09]}  Qc2 {[%clk 0:00:46]} 45. Ba5 {[%clk 0:01:08]}  Qxe2+ {[%clk 0:00:42]} 46. Bxe2 {[%clk 0:01:09]}  Nd7 {[%clk 0:00:41]} 47. Bh5 {[%clk 0:01:03]}  Bd6 {[%clk 0:00:40]} 48. Kf3 {[%clk 0:01:01]}  Kg8 {[%clk 0:00:39]} 49. Ke2 {[%clk 0:01:01]}  Ne5 {[%clk 0:00:38]} 50. Bd8 {[%clk 0:00:59]}  Kf8 {[%clk 0:00:38]} 51. Kd2 {[%clk 0:00:57]}  Nf7 {[%clk 0:00:38]} 52. Bxf7 {[%clk 0:00:41]}  Kxf7 {[%clk 0:00:38]} 53. Ke2 {[%clk 0:00:42]}  Ke8 {[%clk 0:00:37]} 54. Ba5 {[%clk 0:00:41]}  Kf7 {[%clk 0:00:37]} 55. Kf3 {[%clk 0:00:42]}  g6 {[%clk 0:00:34]} 56. fxg6+ {[%clk 0:00:19]}  Kxg6 {[%clk 0:00:34]} 57. Bd2 {[%clk 0:00:19]}  Bc7 {[%clk 0:00:23]} 58. Bc1 {[%clk 0:00:19]}  Bd6 {[%clk 0:00:22]} 59. Bf4 {[%clk 0:00:18]}  Be7 {[%clk 0:00:20]} 60. Kg4 {[%clk 0:00:16]}  Bf8 {[%clk 0:00:20]} 61. Bg3 {[%clk 0:00:15]}  Be7 {[%clk 0:00:18]} 62. Bc7 {[%clk 0:00:15]}  h5+ {[%clk 0:00:18]} 63. Kf4 {[%clk 0:00:14]}  Bf8 {[%clk 0:00:18]} 64. e5 {[%clk 0:00:13]}  f5 {[%clk 0:00:10]} 65. Bd6 {[%clk 0:00:11]}  Bh6+ {[%clk 0:00:10]} 66. Kf3 {[%clk 0:00:11]}  Kf7 {[%clk 0:00:09]} 67. Bxc5 {[%clk 0:00:11]}  Ke6 {[%clk 0:00:08]} 68. Bxd4 {[%clk 0:00:11]}  Bg7 {[%clk 0:00:09]} 69. Be3 {[%clk 0:00:10]}  Bxe5 {[%clk 0:00:09]} 70. d4 {[%clk 0:00:07]}  Bb8 {[%clk 0:00:08]} 71. Bf4 {[%clk 0:00:07]}  Ba7 {[%clk 0:00:08]} 72. d5+ {[%clk 0:00:07]}  Kf6 {[%clk 0:00:08]} 73. Bg3 {[%clk 0:00:07]}  Bc5 {[%clk 0:00:08]} 74. Bf2 {[%clk 0:00:06]}  Bd6 {[%clk 0:00:05]} 75. Bh4+ {[%clk 0:00:06]}  Ke5 {[%clk 0:00:05]} 76. Bg3+ {[%clk 0:00:07]}  Kd4 {[%clk 0:00:04]} 77. Bxd6 {[%clk 0:00:08]}  Kxc4 {[%clk 0:00:05]} 78. Kf4 {[%clk 0:00:06]}  Kxd5 {[%clk 0:00:06]} 79. Bb8 {[%clk 0:00:06]}  Ke6 {[%clk 0:00:07]} 80. h4 {[%clk 0:00:06]}  Kf6 {[%clk 0:00:07]} 81. Be5+ {[%clk 0:00:06]}  Ke6 {[%clk 0:00:06]} 82. Bb2 {[%clk 0:00:05]}  Kf7 {[%clk 0:00:06]} 83. Kxf5 {[%clk 0:00:06]}  Kg8 {[%clk 0:00:07]} 84. Kg5 {[%clk 0:00:07]}  Kh7 {[%clk 0:00:07]} 85. Kxh5 {[%clk 0:00:07]}  Kg8 {[%clk 0:00:08]} 86. Kg6 {[%clk 0:00:08]} 1-0

[Event "January 9 Early 2024"]
[Site "https://www.chess.com"]
[Date "2024.01.11"]
[Round "4"]
[White "Bardyk, Artem"]
[Black "Giri, Anish"]
[Result "1/2-1/2"]
[Board "307"]
[TimeControl "180+1"]
[WhiteFideId "34349979"]
[BlackFideId "24116068"]
[WhiteElo "2776"]
[BlackElo "2980"]
[WhiteTeam "RUS"]
[BlackTeam "NED"]
[WhiteClock "0:00:08"]
[BlackClock "0:00:13"]

1. e4 {[%clk 0:02:58]}  c5 {[%clk 0:02:59]} 2. c3 {[%clk 0:02:56]}  d5 {[%clk 0:02:59]} 3. exd5 {[%clk 0:02:57]}  Qxd5 {[%clk 0:02:59]} 4. Nf3 {[%clk 0:02:56]}  Nf6 {[%clk 0:03:00]} 5. Na3 {[%clk 0:02:56]}  e6 {[%clk 0:02:57]} 6. Bc4 {[%clk 0:02:56]}  Qd8 {[%clk 0:02:56]} 7. d4 {[%clk 0:02:56]}  a6 {[%clk 0:02:55]} 8. O-O {[%clk 0:02:53]}  b5 {[%clk 0:02:53]} 9. Be2 {[%clk 0:02:52]}  Bb7 {[%clk 0:02:52]} 10. Nc2 {[%clk 0:02:52]}  Nbd7 {[%clk 0:02:47]} 11. Re1 {[%clk 0:02:50]}  Be7 {[%clk 0:02:46]} 12. Bf4 {[%clk 0:02:45]}  O-O {[%clk 0:02:46]} 13. h3 {[%clk 0:02:45]}  cxd4 {[%clk 0:02:25]} 14. Ncxd4 {[%clk 0:02:44]}  Re8 {[%clk 0:02:21]} 15. Ne5 {[%clk 0:02:42]}  Nxe5 {[%clk 0:02:17]} 16. Bxe5 {[%clk 0:02:42]}  Nd7 {[%clk 0:02:18]} 17. Bf3 {[%clk 0:02:32]}  Bxf3 {[%clk 0:02:14]} 18. Qxf3 {[%clk 0:02:33]}  Nxe5 {[%clk 0:02:13]} 19. Rxe5 {[%clk 0:02:34]}  Bf6 {[%clk 0:02:13]} 20. Re4 {[%clk 0:02:34]}  Qd5 {[%clk 0:02:12]} 21. Rg4 {[%clk 0:02:25]}  Qxf3 {[%clk 0:02:03]} 22. Nxf3 {[%clk 0:02:25]}  Rab8 {[%clk 0:01:53]} 23. Kf1 {[%clk 0:02:16]}  a5 {[%clk 0:01:47]} 24. Nd4 {[%clk 0:02:06]}  Rec8 {[%clk 0:01:44]} 25. a3 {[%clk 0:01:36]}  b4 {[%clk 0:01:24]} 26. axb4 {[%clk 0:01:37]}  axb4 {[%clk 0:01:24]} 27. Rc1 {[%clk 0:01:28]}  bxc3 {[%clk 0:01:15]} 28. bxc3 {[%clk 0:01:14]}  Rb2 {[%clk 0:01:14]} 29. Ne2 {[%clk 0:01:07]}  Rd8 {[%clk 0:01:08]} 30. Rb4 {[%clk 0:01:06]}  Ra2 {[%clk 0:00:59]} 31. Nd4 {[%clk 0:00:44]}  g6 {[%clk 0:00:56]} 32. Nf3 {[%clk 0:00:28]}  Rc8 {[%clk 0:00:25]} 33. c4 {[%clk 0:00:26]}  Be7 {[%clk 0:00:25]} 34. c5 {[%clk 0:00:17]}  Rxc5 {[%clk 0:00:20]} 35. Rbb1 {[%clk 0:00:02]}  Kg7 {[%clk 0:00:08]} 36. g3 {[%clk 0:00:02]}  Rca5 {[%clk 0:00:06]} 37. Kg2 {[%clk 0:00:02]}  Bc5 {[%clk 0:00:05]} 38. Rf1 {[%clk 0:00:03]}  Ba7 {[%clk 0:00:05]} 39. Ne1 {[%clk 0:00:02]}  Rd2 {[%clk 0:00:05]} 40. Rb3 {[%clk 0:00:02]}  Rad5 {[%clk 0:00:03]} 41. Rf3 {[%clk 0:00:01]}  g5 {[%clk 0:00:03]} 42. g4 {[%clk 0:00:01]}  h6 {[%clk 0:00:03]} 43. Rg3 {[%clk 0:00:02]}  Re2 {[%clk 0:00:03]} 44. Rf3 {[%clk 0:00:02]}  Kg6 {[%clk 0:00:03]} 45. Kg1 {[%clk 0:00:03]}  Rd1 {[%clk 0:00:03]} 46. Ng2 {[%clk 0:00:03]}  Rxf1+ {[%clk 0:00:03]} 47. Kxf1 {[%clk 0:00:03]}  Rd2 {[%clk 0:00:04]} 48. Ne3 {[%clk 0:00:03]}  f5 {[%clk 0:00:05]} 49. gxf5+ {[%clk 0:00:03]}  exf5 {[%clk 0:00:05]} 50. Nxf5 {[%clk 0:00:03]}  Rd1+ {[%clk 0:00:04]} 51. Kg2 {[%clk 0:00:03]}  Rd7 {[%clk 0:00:05]} 52. Ng3 {[%clk 0:00:03]}  h5 {[%clk 0:00:06]} 53. Ra3 {[%clk 0:00:03]}  Bb8 {[%clk 0:00:05]} 54. Ra6+ {[%clk 0:00:03]}  Rd6 {[%clk 0:00:05]} 55. Rxd6+ {[%clk 0:00:03]}  Bxd6 {[%clk 0:00:06]} 56. Ne4 {[%clk 0:00:04]}  Bf4 {[%clk 0:00:06]} 57. Kf3 {[%clk 0:00:04]}  Kf5 {[%clk 0:00:07]} 58. Nc5 {[%clk 0:00:04]}  Bd6 {[%clk 0:00:07]} 59. Nd3 {[%clk 0:00:04]}  Bc7 {[%clk 0:00:08]} 60. Kg2 {[%clk 0:00:04]}  Ke4 {[%clk 0:00:08]} 61. Ne1 {[%clk 0:00:04]}  Ba5 {[%clk 0:00:08]} 62. Nf3 {[%clk 0:00:05]}  Kf4 {[%clk 0:00:07]} 63. Ng1 {[%clk 0:00:04]}  Bb6 {[%clk 0:00:07]} 64. Ne2+ {[%clk 0:00:05]}  Kf5 {[%clk 0:00:07]} 65. Ng3+ {[%clk 0:00:05]}  Kg6 {[%clk 0:00:08]} 66. Ne4 {[%clk 0:00:05]}  Bc7 {[%clk 0:00:08]} 67. Nc5 {[%clk 0:00:05]}  Kf5 {[%clk 0:00:08]} 68. Nd3 {[%clk 0:00:05]}  Bd6 {[%clk 0:00:09]} 69. Ne1 {[%clk 0:00:05]}  Ke4 {[%clk 0:00:09]} 70. Nf3 {[%clk 0:00:05]}  Bf4 {[%clk 0:00:09]} 71. Ng1 {[%clk 0:00:05]}  Kd3 {[%clk 0:00:09]} 72. Nf3 {[%clk 0:00:05]}  Ke4 {[%clk 0:00:10]} 73. Ng1 {[%clk 0:00:05]}  Bc1 {[%clk 0:00:10]} 74. Ne2 {[%clk 0:00:05]}  Bd2 {[%clk 0:00:10]} 75. Ng3+ {[%clk 0:00:06]}  Ke5 {[%clk 0:00:10]} 76. Nxh5 {[%clk 0:00:07]}  Kf5 {[%clk 0:00:10]} 77. Ng3+ {[%clk 0:00:07]}  Kf4 {[%clk 0:00:10]} 78. Ne2+ {[%clk 0:00:06]}  Ke4 {[%clk 0:00:10]} 79. Kg3 {[%clk 0:00:06]}  Kf5 {[%clk 0:00:11]} 80. Kf3 {[%clk 0:00:07]}  Bb4 {[%clk 0:00:11]} 81. Ng3+ {[%clk 0:00:07]}  Ke5 {[%clk 0:00:10]} 82. Kg4 {[%clk 0:00:07]}  Be1 {[%clk 0:00:11]} 83. f3 {[%clk 0:00:05]}  Bxg3 {[%clk 0:00:09]} 84. Kxg3 {[%clk 0:00:06]}  Kf5 {[%clk 0:00:10]} 85. Kg2 {[%clk 0:00:07]}  Ke6 {[%clk 0:00:09]} 86. Kf2 {[%clk 0:00:07]}  Kf6 {[%clk 0:00:10]} 87. Ke2 {[%clk 0:00:07]}  Ke6 {[%clk 0:00:10]} 88. Kd3 {[%clk 0:00:08]}  Kd5 {[%clk 0:00:10]} 89. Ke3 {[%clk 0:00:06]}  Ke5 {[%clk 0:00:11]} 90. Ke2 {[%clk 0:00:06]}  Ke6 {[%clk 0:00:11]} 91. Kf1 {[%clk 0:00:07]}  Kf7 {[%clk 0:00:10]} 92. Kg2 {[%clk 0:00:08]}  Kg6 {[%clk 0:00:11]} 93. Kf2 {[%clk 0:00:08]}  Kf6 {[%clk 0:00:11]} 94. Kf1 {[%clk 0:00:07]}  Kf5 {[%clk 0:00:11]} 95. Kg1 {[%clk 0:00:08]}  Ke5 {[%clk 0:00:11]} 96. Kh2 {[%clk 0:00:09]}  Kf6 {[%clk 0:00:10]} 97. Kg2 {[%clk 0:00:08]}  Ke6 {[%clk 0:00:11]} 98. Kg3 {[%clk 0:00:09]}  Kf5 {[%clk 0:00:11]} 99. h4 {[%clk 0:00:09]}  gxh4+ {[%clk 0:00:11]} 100. Kxh4 {[%clk 0:00:10]}  Kf4 {[%clk 0:00:12]} 101. Kh5 {[%clk 0:00:08]}  Kxf3 {[%clk 0:00:13]} 1/2-1/2